[Event "FIDE WY-U16 Olympiad 2022"]
[Site "Nakhchivan"]
[Date "2022.10.02"]
[Round "1.8"]
[White "Thamil Manni, Swetha"]
[Black "Baloglu, Dila"]
[Result "0-1"]
[ECO "A45"]
[WhiteElo "1428"]
[BlackElo "1752"]
[Annotator "NA RC COMBH"]
[PlyCount "106"]
[EventDate "2022.10.02"]
[EventType "team-tourn"]
[EventCountry "AZE"]
[SourceTitle "playchess.com"]
[Source "ChessBase"]
[SourceQuality "1"]
[WhiteTeam "Malaysia"]
[BlackTeam "Turkey"]
[WhiteTeamCountry "MAS"]
[BlackTeamCountry "TUR"]
[TimeControl "40/5400+30:1800+30"]

1. d4 {[%emt 0:00:09]} Nf6 {[%emt 0:00:11]} 2. Bf4 {[%emt 0:00:40]} g6 {[%emt 0:00:44]} 3. Nc3 {[%emt 0:01:02]} d5 {[%emt 0:01:35]} 4. Nf3 {[%emt 0:07:52]} Bg7 {[%emt 0:01:51]} 5. Qd2 {[%emt 0:03:29]} c6 {[%emt 0:05:40]} 6. h4 {[%emt 0:07:44]} h5 {[%emt 0:05:06]} 7. Ng5 {[%emt 0:09:55]} O-O {[%emt 0:06:49]} 8. O-O-O {[%emt 0:06:52]} b5 {[%emt 0:04:30]} 9. e4 {[%emt 0:08:16]} b4 {[%emt 0:31:05]} 10. Ne2 {[%emt 0:16:24]} Qa5 {[%emt 0:12:52]} 11. Kb1 {[%emt 0:02:51]} Nxe4 {[%emt 0:05:57]} 12. Nxe4 {[%emt 0:00:52]} dxe4 {[%emt 0:00:02]} 13. Bxb8 {[%emt 0:01:29]} Rxb8 {[%emt 0:00:02]} 14. Qf4 {[%emt 0:00:29]} Be6 {[%emt 0:01:19]} 15. Nc1 {[%emt 0:04:15]} Qd5 {[%emt 0:02:04]} 16. b3 {[%emt 0:11:13]} Qa5 {[%emt 0:05:31]} 17. Qxe4 {[%emt 0:02:50]} c5 {[%emt 0:01:04]} 18. Ne2 {[%emt 0:06:12]} Rfd8 {[%emt 0:03:52]} 19. Qc6 {[%emt 0:06:32]} cxd4 {[%emt 0:04:00]} 20. Nf4 {[%emt 0:00:24]} d3 {[%emt 0:03:03]} 21. Nxd3 {[%emt 0:00:34]} Qa3 {[%emt 0:01:20]} 22. Qa4 {[%emt 0:00:37]} Rxd3 {[%emt 0:00:07]} 23. Qxa3 {[%emt 0:00:04]} Rxd1+ {[%emt 0:00:04]} 24. Qc1 {[%emt 0:00:13]} Rxc1+ {[%emt 0:00:06]} 25. Kxc1 {[%emt 0:00:02]} Bh6+ {[%emt 0:00:50]} 26. Kd1 {[%emt 0:00:13]} Rd8+ {[%emt 0:00:32]} 27. Bd3 {[%emt 0:00:18]} Bf5 {[%emt 0:00:07]} 28. Ke2 {[%emt 0:00:05]} Bxd3+ {[%emt 0:00:05]} 29. cxd3 {[%emt 0:00:05]} Rc8 {[%emt 0:00:08]} 30. Re1 {[%emt 0:00:45]} Rc2+ {[%emt 0:00:26]} 31. Kf3 {[%emt 0:00:02]} Rxa2 {[%emt 0:00:37]} 32. Rxe7 {[%emt 0:00:08]} Ra3 {[%emt 0:00:14]} 33. Ke4 {[%emt 0:00:13]} Rxb3 {[%emt 0:00:28]} 34. Rxa7 {[%emt 0:00:04]} Rb1 {[%emt 0:00:10]} 35. Rb7 {[%emt 0:00:41]} b3 {[%emt 0:03:39]} 36. d4 {[%emt 0:02:45]} b2 {[%emt 0:00:15]} 37. Rb8+ {[%emt 0:00:32]} Kg7 {[%emt 0:00:30]} 38. Kf3 {[%emt 0:01:05]} Bc1 {[%emt 0:00:25]} 39. d5 {[%emt 0:00:33]} Ra1 {[%emt 0:00:03]} 40. d6 {[%emt 0:00:32]} b1=Q {[%emt 0:00:05]} 41. Rxb1 {[%emt 0:30:07]} Rxb1 {[%emt 0:30:03]} 42. d7 {[%emt 0:00:07]} Rb8 {[%emt 0:00:03]} 43. Ke2 {[%emt 0:00:08]} Rd8 {[%emt 0:00:05]} 44. g3 {[%emt 0:00:08]} Rxd7 {[%emt 0:00:04]} 45. Kf3 {[%emt 0:00:05]} Kf6 {[%emt 0:00:14]} 46. Kg2 {[%emt 0:00:11]} g5 {[%emt 0:00:21]} 47. hxg5+ {[%emt 0:00:09]} Kxg5 {[%emt 0:00:05]} 48. Kf3 {[%emt 0:00:10]} f5 {[%emt 0:00:20]} 49. Kg2 {[%emt 0:00:06]} f4 {[%emt 0:00:38]} 50. gxf4+ {[%emt 0:00:09]} Kxf4 {[%emt 0:00:06]} 51. f3 {[%emt 0:00:29]} Rd2+ {[%emt 0:00:05]} 52. Kh3 {[%emt 0:00:10]} h4 {[%emt 0:00:07]} 53. Kxh4 {[%emt 0:00:10]} Rh2# {[%emt 0:00:03]} 0-1

[Event "FIDE WY-U16 Olympiad 2022"]
[Site "Nakhchivan"]
[Date "2022.10.02"]
[Round "1.9"]
[White "Pranav Vijay"]
[Black "Mendez Machado, Andre"]
[Result "1-0"]
[ECO "C78"]
[WhiteElo "2265"]
[BlackElo "2003"]
[Annotator "TA"]
[PlyCount "63"]
[EventDate "2022.10.02"]
[EventType "team-tourn"]
[EventCountry "AZE"]
[SourceTitle "playchess.com"]
[Source "ChessBase"]
[SourceQuality "1"]
[WhiteTeam "India"]
[BlackTeam "Panama"]
[WhiteTeamCountry "IND"]
[BlackTeamCountry "PAN"]
[TimeControl "40/5400+30:1800+30"]

{[%evp 15,63,0,0,-8,0,-3,-4,-4,-1,-11,-8,-8,0,0,0,0,0,0,40,18,51,17,88,92,77,89,142,121,131,127,154,174,464,450,439,414,626,635,617,629,589,613,575,510,911,966,859,683,872,754]} 1. e4 {[%emt 0:00:02]} e5 {[%emt 0:00:11]} 2. Nf3 {[%emt 0:00:08]} Nc6 {[%emt 0:00:04]} 3. Bb5 {[%emt 0:00:07]} a6 {[%emt 0:00:08]} 4. Ba4 {[%emt 0:00:05]} Nf6 {[%emt 0:00:14]} 5. O-O {[%emt 0:00:08]} b5 {[%emt 0:00:05]} 6. Bb3 {[%emt 0:00:07]} Bc5 {[%emt 0:00:06]} 7. c3 {[%emt 0:00:57]} d6 {[%emt 0:00:32]} 8. d3 {[%emt 0:01:44]} h6 {[%emt 0:03:20]} 9. Be3 {[%emt 0:05:43] 9.Nbd2 is becoming the main line. C78: Ruy Lopez: Archangelsk and Möller Defences.} Bxe3 {[%emt 0:07:53]} 10. fxe3 {[%emt 0:00:09]} Na5 {[%emt 0:05:30]} 11. Bc2 {[%emt 0:00:40] The position is equal.} c5 {[%emt 0:05:42]} 12. Nbd2 {[%emt 0:01:38]} O-O {[%emt 0:01:01]} 13. Qe1 {[%emt 0:00:24] [#]} Re8 $146 {[%emt 0:03:48]} ({Predecessor:} 13... Nc6 14. Nh4 Be6 15. Nf5 Bxf5 16. Rxf5 Ne7 17. Rf3 Ra7 18. Nf1 Ng6 19. Ng3 Nh4 {½-½ (43) Kosintseva,N (2460)-Ruan,L (2499) Ningbo 2008}) 14. Qg3 {[%emt 0:01:23]} Nh5 {[%emt 0:12:21]} 15. Qf2 {[%emt 0:00:16][%cal Of3e5]} Ra7 {[%emt 0:05:41]} 16. h3 {[%emt 0:02:48]} g6 {[%emt 0:03:10]} 17. d4 {[%emt 0:04:05]} Ng7 {[%emt 0:01:34]} 18. d5 {[%emt 0:11:32]} c4 {[%emt 0:03:01]} (18... Rf8 $11 {remains equal.}) 19. b4 $16 {[%emt 0:03:18]} cxb3 {[%emt 0:01:14]} 20. axb3 {[%emt 0:00:13][%cal Ba2b3,Bb3b4][%mdl 32]} Qb6 {[%emt 0:01:41]} (20... Kh7 $142) 21. b4 {[%emt 0:02:58]} Nb7 {[%emt 0:01:54]} 22. Rae1 {[%emt 0:05:37] [#] Hoping for Qh4. White is more active.} Qd8 {[%emt 0:11:08]} 23. Nd4 {[%emt 0:07:11]} exd4 $2 {[%emt 0:02:59]} (23... Na5) 24. Qxf7+ $18 {[%emt 0:00:14]} Kh8 {[%emt 0:01:30]} 25. exd4 {[%emt 0:00:31]} Qe7 {[%emt 0:08:17]} (25... Qg5 $142 26. Nf3 Qg3) 26. Qxg6 {[%emt 0:00:36] White is clearly winning.} Qg5 {[%emt 0:00:26] [#]} 27. e5 $1 {[%emt 0:00:41][%csl Gc2][%cal Rg6h7]} Qxg6 {[%emt 0:02:18]} 28. Bxg6 {[%emt 0:00:09]} Rg8 {[%emt 0:01:00]} 29. Bf7 {[%emt 0:00:15]} Nf5 {[%emt 0:01:28]} (29... dxe5 $142 30. Bxg8 Kxg8 31. dxe5 Nd8) 30. Bxg8 {[%emt 0:00:25]} Kxg8 {[%emt 0:00:02]} 31. Ne4 {[%emt 0:00:17] And now e6 would win.} Ne7 {[%emt 0:01:12]} 32. Nxd6 {[%emt 0:00:50] Weighted Error Value: White=0.19 (very precise) /Black=0.48} 1-0

[Event "FIDE WY-U16 Olympiad 2022"]
[Site "Nakhchivan"]
[Date "2022.10.02"]
[Round "1.9"]
[White "Ismayilova, Khanim"]
[Black "Azadaliyev, Jahandar"]
[Result "0-1"]
[ECO "A35"]
[WhiteElo "1901"]
[BlackElo "2304"]
[Annotator "TA"]
[PlyCount "54"]
[EventDate "2022.10.02"]
[EventType "team-tourn"]
[EventCountry "AZE"]
[SourceTitle "playchess.com"]
[Source "ChessBase"]
[SourceQuality "1"]
[WhiteTeam "Azerbaijan"]
[BlackTeam "Azerbaijan"]
[WhiteTeamCountry "AZE"]
[BlackTeamCountry "AZE"]
[TimeControl "40/5400+30:1800+30"]

{[%evp 15,53,-5,0,-54,39,-104,-45,-112,-58,-135,-36,-48,-57,-54,-58,-68,-12,-40,-62,-98,-107,-147,-52,-677,-679,-664,-656,-958,-931,-845,-851,-1641,-500,-29980,-849,-29997,-29998,-29998,-29999,-29999]} 1. c4 {[%emt 0:00:02]} c5 {[%emt 0:00:21]} 2. Nc3 {[%emt 0:00:30]} Nc6 {[%emt 0:00:11]} 3. Nf3 {[%emt 0:00:12]} Nf6 {[%emt 0:00:16]} 4. e3 {[%emt 0:00:18][%cal Be2e3,Be3d4,Bd4d5][%mdl 32]} e5 {[%emt 0:00:58][%cal Be7e5,Be5e4][%mdl 32]} 5. d4 {[%emt 0:11:42]} e4 {[%emt 0:00:50]} 6. Ng5 {[%emt 0:03:42]} cxd4 {[%emt 0:02:34]} 7. exd4 {[%emt 0:00:26]} Bb4 {[%emt 0:00:37]} 8. d5 {[%emt 0:11:13]} Ne5 {[%emt 0:03:02]} 9. Be2 {[%emt 0:04:02] A34: Symmetrical English: 2 Nc3, lines with ...d5.} (9. Bd2 $11) 9... h6 {[%emt 0:00:46] [#]} ({Black should try} 9... Bxc3+ $15 10. bxc3 d6) 10. Nh3 $146 {[%emt 0:03:05]} (10. Qd4 $14 {keeps the upper hand.} Nd3+ 11. Bxd3 exd3 12. Nf3) ({Predecessor:} 10. Qd4 d6 11. Ngxe4 Nxe4 12. Qxe4 O-O 13. O-O f5 14. Qc2 f4 15. f3 Bc5+ 16. Kh1 Qh4 {0-1 (26) Elguezabal Varela,D (2300)-Bellon Lopez,J (2415) Spain 1993}) 10... O-O {[%emt 0:00:29] Black is much more active.} (10... Bxc3+ $17 11. bxc3 O-O) 11. O-O {[%emt 0:06:16]} ({Better is} 11. Qb3 $15 Bxc3+ 12. Qxc3) 11... d6 {[%emt 0:00:20]} (11... Bxc3 $17 12. bxc3 d6) 12. Nf4 {[%emt 0:15:50]} (12. Qb3 $15 Bxc3 13. Qxc3) 12... Bf5 {[%emt 0:01:25]} (12... Bxc3 $17 13. bxc3 b6) 13. Qb3 $15 {[%emt 0:08:15]} Bxc3 {[%emt 0:00:55]} 14. Qxc3 {[%emt 0:00:56]} Rc8 $1 {[%emt 0:00:39]} ({Reject} 14... g5 15. Nh5 $11) 15. Qb4 {[%emt 0:01:33]} Nd3 {[%emt 0:05:12]} (15... g5 $15 16. Nh5 Nxh5 17. Bxh5 Rxc4 18. Qxb7 Rc7) 16. Bxd3 {[%emt 0:06:16]} (16. Qa3 $5 {[%cal Rf4d3]}) 16... exd3 {[%emt 0:00:07]} 17. Rd1 {[%emt 0:05:00]} Re8 {[%emt 0:03:11][%cal Ob7b5]} 18. b3 {[%emt 0:02:04] [#]} Ng4 {[%emt 0:05:17]} (18... b5 $1 $17 {Strongly threatening ...bxc4.} 19. Bb2 bxc4 20. bxc4 Ng4) 19. Bb2 $2 {[%emt 0:01:52][%mdl 8192] This move loses the game for White.} (19. h3 $15 a5 20. Qc3 (20. Qxb7 Qf6 $17)) 19... Qh4 $1 $19 {[%emt 0:01:13][%csl LRf2,LRh2]} 20. Nh3 {[%emt 0:01:35]} Re2 {[%emt 0:01:33][%cal Rg4f2]} 21. Qc3 {[%emt 0:01:48][%csl Gb2][%cal Rc3g7]} Ne5 {[%emt 0:02:36]} 22. Qd4 {[%emt 0:04:54]} Re4 {[%emt 0:01:03]} 23. Qc3 {[%emt 0:00:53]} Bxh3 {[%emt 0:00:12]} (23... Rg4 $142 {( -> ...Qxh3)} 24. Qxe5 dxe5 25. Rxd3 Bxd3 26. Bxe5 Qxh3) 24. gxh3 {[%emt 0:00:05]} (24. Rxd3 $19 Bf5 25. Rd4) 24... Qxh3 {[%emt 0:00:06]} (24... Re2 $142 25. Rf1 Qxh3 26. Qxe5 dxe5 27. Rac1 Rxb2 28. a3 Qg4+ 29. Kh1 Qf3+ 30. Kg1 Rxb3 31. c5 Rxa3 32. c6 {[#]} Rxc6 $1 {[%mdl 512]} 33. Rxc6 bxc6 34. h3 cxd5 35. Kh2 d2 36. Kg1 Ra6 37. Kh2 Rg6 38. Rg1 Qxf2+ 39. Kh1 Rxg1#) 25. Kh1 {[%emt 0:02:09]} Qf3+ {[%emt 0:00:04] Black mates.} 26. Kg1 {[%emt 0:00:04]} Rg4+ {[%emt 0:00:05]} 27. Kf1 {[%emt 0:00:05]} Qe2# {[%emt 0:00:02] Weighted Error Value: White=1.67/Black=0.69} 0-1

[Event "FIDE WY-U16 Olympiad 2022"]
[Site "Nakhchivan"]
[Date "2022.10.02"]
[Round "1.10"]
[White "Aslanov, Umid"]
[Black "Nuriyeva, Nurtan"]
[Result "1-0"]
[ECO "B90"]
[WhiteElo "2273"]
[BlackElo "1691"]
[Annotator "TA"]
[PlyCount "92"]
[EventDate "2022.10.02"]
[EventType "team-tourn"]
[EventCountry "AZE"]
[SourceTitle "playchess.com"]
[Source "ChessBase"]
[SourceQuality "1"]
[WhiteTeam "Azerbaijan"]
[BlackTeam "Azerbaijan"]
[WhiteTeamCountry "AZE"]
[BlackTeamCountry "AZE"]
[TimeControl "40/5400+30:1800+30"]

{[%evp 12,92,38,47,46,31,25,5,5,-31,-32,-33,-33,-38,-18,-43,16,7,23,27,57,29,55,56,58,54,42,45,40,47,56,18,28,0,0,-9,-21,-25,-25,-39,-26,-42,-50,-37,-18,-37,0,0,41,52,154,142,176,177,187,125,256,230,262,241,262,239,462,447,427,441,481,479,465,441,500,471,553,530,621,607,666,621,595,554,905,892,1518]} 1. e4 {[%emt 0:00:06]} c5 {[%emt 0:00:19]} 2. Nf3 {[%emt 0:00:07]} d6 {[%emt 0:00:27]} 3. d4 {[%emt 0:00:05]} cxd4 {[%emt 0:00:30]} 4. Nxd4 {[%emt 0:00:06]} Nf6 {[%emt 0:00:33]} 5. Nc3 {[%emt 0:00:06]} a6 {[%emt 0:00:24]} 6. Bc4 {[%emt 0:00:23]} e5 {[%emt 0:01:00]} 7. Nf5 {[%emt 0:11:12]} Bxf5 {[%emt 0:01:55] B90: Sicilian Najdorf: Unusual White 6th moves, 6 Be3 Ng4 and 6 Be3 e5.} 8. exf5 {[%emt 0:00:06]} Qc8 {[%emt 0:00:16][%csl LRc4,LRf5]} 9. Bd5 {[%emt 0:38:52]} Nc6 $1 {[%emt 0:04:57] [#] The position is equal.} 10. Bxc6+ $146 {[%emt 0:01:26]} ({Predecessor:} 10. O-O Qxf5 11. f4 Qd7 12. Re1 Nxd5 13. Qxd5 Be7 14. fxe5 dxe5 15. Be3 Bb4 16. Rad1 Qc7 17. Ne4 O-O {0-1 (17) Arboleda Orozco,J (2015)-Hernandez,C (2252) Medellin 2017}) 10... bxc6 {[%emt 0:01:06]} 11. Qf3 {[%emt 0:01:49]} Rb8 {[%emt 0:01:51]} 12. O-O {[%emt 0:00:58]} Be7 {[%emt 0:00:45]} 13. Re1 {[%emt 0:02:06]} h5 {[%emt 0:12:05]} ({Black should play} 13... O-O $15) 14. Qd3 {[%emt 0:15:25]} Rb4 {[%emt 0:15:00]} 15. a3 {[%emt 0:05:44]} Rd4 {[%emt 0:09:23]} 16. Qe2 {[%emt 0:00:21]} Nd5 {[%emt 0:01:22]} 17. Ne4 {[%emt 0:01:52]} Qxf5 {[%emt 0:04:25]} 18. c3 {[%emt 0:00:23]} Rxe4 {[%emt 0:01:43]} 19. Qxe4 {[%emt 0:00:06]} Qxe4 {[%emt 0:00:04]} 20. Rxe4 {[%emt 0:00:04]} Kd7 {[%emt 0:00:04]} 21. Bd2 {[%emt 0:01:05]} Rb8 {[%emt 0:00:40]} 22. b4 {[%emt 0:00:26]} f5 {[%emt 0:00:06]} 23. Ree1 {[%emt 0:00:12]} Nb6 $1 {[%emt 0:00:08]} 24. f3 {[%emt 0:04:32]} Nc4 {[%emt 0:01:22][%mdl 1024] Black has compensation.} 25. Ra2 {[%emt 0:00:14]} d5 {[%emt 0:01:25]} 26. a4 {[%emt 0:02:13]} g6 {[%emt 0:02:57]} 27. Rb1 {[%emt 0:02:33]} Rb7 {[%emt 0:05:58]} 28. Be1 {[%emt 0:01:57]} a5 {[%emt 0:01:12]} 29. Raa1 {[%emt 0:01:03]} e4 {[%emt 0:09:31]} 30. bxa5 {[%emt 0:01:33]} Bc5+ {[%emt 0:00:17]} ({Black should try} 30... Ra7 $14) 31. Bf2 $16 {[%emt 0:02:20]} Rxb1+ {[%emt 0:00:07]} 32. Rxb1 {[%emt 0:00:12][%mdl 4096] Endgame KRB-KBN} e3 {[%emt 0:00:08] [#]} 33. Bg3 {[%emt 0:01:13]} (33. Be1 $1 $18) 33... Nxa5 {[%emt 0:00:59] This costs Black the game.} (33... f4 $16 34. Bh4 (34. Bxf4 e2+ 35. Kh1 Nb2 $11) 34... g5) 34. Kf1 $18 {[%emt 0:00:29]} g5 {[%emt 0:01:27]} 35. f4 {[%emt 0:01:21]} g4 {[%emt 0:05:55]} 36. Rb8 {[%emt 0:00:57]} d4 $2 {[%emt 0:02:51]} (36... Be7 37. Ke2 h4) 37. cxd4 {[%emt 0:00:12] White is clearly winning.} Bxd4 {[%emt 0:00:09]} 38. Be1 {[%emt 0:00:15]} Kc7 {[%emt 0:00:41]} 39. Rf8 {[%emt 0:00:52]} Nb3 {[%emt 0:00:13]} 40. Ke2 {[%emt 0:02:19]} Bc5 {[%emt 0:00:42]} 41. Rf7+ {[%emt 0:30:08]} Kd6 {[%emt 0:30:10]} 42. a5 {[%emt 0:01:36][%cal Ba4a5,Ba5a6][%mdl 32]} Ke6 {[%emt 0:01:15]} 43. Rb7 {[%emt 0:00:38]} Nc1+ {[%emt 0:02:25]} 44. Kd1 {[%emt 0:00:16]} Nd3 {[%emt 0:00:41]} 45. g3 {[%emt 0:01:38] [#] aiming for a6.} Bd4 {[%emt 0:00:37]} 46. a6 {[%emt 0:00:30]} Kd5 {Weighted Error Value: White=0.09 (flawless) /Black=0.35} 1-0

[Event "FIDE WY-U16 Olympiad 2022"]
[Site "Nakhchivan"]
[Date "2022.10.02"]
[Round "1.10"]
[White "Batista Rosas, Nicolas Arturo"]
[Black "Pranesh M"]
[Result "0-1"]
[ECO "D31"]
[WhiteElo "1919"]
[BlackElo "2437"]
[Annotator "TA"]
[PlyCount "80"]
[EventDate "2022.10.02"]
[EventType "team-tourn"]
[EventCountry "AZE"]
[SourceTitle "playchess.com"]
[Source "ChessBase"]
[SourceQuality "1"]
[WhiteTeam "Panama"]
[BlackTeam "India"]
[WhiteTeamCountry "PAN"]
[BlackTeamCountry "IND"]
[TimeControl "40/5400+30:1800+30"]

{[%evp 28,80,-49,-31,-22,-25,-33,-41,-32,-29,-58,-232,-243,-229,-236,-299,-343,-431,-455,-433,-452,-454,-453,-466,-400,-439,-449,-459,-388,-448,-431,-441,-421,-466,-465,-456,-484,-490,-422,-805,-760,-751,-667,-668,-546,-697,-620,-812,-821,-721,-598,-836,-823,-816,-758]} 1. d4 {[%emt 0:00:15]} d5 {[%emt 0:00:08]} 2. c4 {[%emt 0:00:28]} c6 {[%emt 0:00:07]} 3. Nc3 {[%emt 0:00:55]} e6 {[%emt 0:00:14]} 4. Nf3 {[%emt 0:01:36]} dxc4 {[%emt 0:00:38]} 5. a4 {[%emt 0:01:53]} Bb4 {[%emt 0:03:26]} 6. e3 {[%emt 0:02:06]} b5 {[%emt 0:00:20]} 7. Bd2 {[%emt 0:02:35]} a5 {[%emt 0:00:26]} 8. axb5 {[%emt 0:07:51]} Bxc3 {[%emt 0:00:20]} 9. Bxc3 {[%emt 0:01:50]} cxb5 {[%emt 0:00:07]} 10. b3 {[%emt 0:00:20]} Bb7 {[%emt 0:00:19]} 11. bxc4 {[%emt 0:02:37]} b4 {[%emt 0:00:10]} 12. Bd2 {[%emt 0:01:48]} Nf6 {[%emt 0:00:51]} 13. Bd3 {[%emt 0:03:30]} O-O {[%emt 0:00:50]} 14. Qc2 {[%emt 0:09:15]} Nbd7 {[%emt 0:01:26]} 15. O-O {[%emt 0:03:50]} Qc7 {[%emt 0:00:57] D31: Queen's Gambit Declined: Semi-Slav without ...Nf6 (+ Marshall Gambit and Noteboom) and Exchange Variation lines without ...Nf6.} 16. e4 {[%emt 0:03:37]} e5 $1 {[%emt 0:00:37] Hoping for ...exd4.} 17. d5 {[%emt 0:08:23] [#]} Rfc8 $146 {[%emt 0:02:35] Black is slightly better.} ({Predecessor:} 17... Nc5 18. Be3 Nfd7 19. Rfb1 Rfc8 20. Nd2 Ba6 21. Bf1 Rab8 22. g3 f6 23. Bh3 Rd8 24. Nb3 Nxb3 25. Qxb3 Nc5 26. Bxc5 Qxc5 27. Rc1 Bc8 28. Bxc8 Rdxc8 {½-½ (28) Sandu,M (2033)-Ciorica,M (2009) Calimanesti Caciulata 2016}) 18. Be3 {[%emt 0:18:58]} Ng4 {[%emt 0:00:44]} 19. Qb2 $2 {[%emt 0:01:37] [#]} (19. Bg5 $15) 19... Nxe3 $19 {[%emt 0:01:46]} 20. fxe3 {[%emt 0:00:02]} Qb6 {[%emt 0:00:28]} 21. Qf2 {[%emt 0:01:20]} f6 {[%emt 0:03:45]} 22. Ng5 {[%emt 0:06:43]} Nc5 {[%emt 0:01:11] Against Ne6} ({Don't go for} 22... fxg5 $2 23. Qf7+ Kh8 24. Qxd7 Qxe3+ 25. Kh1 Qxd3 26. Qxb7 $19) 23. Ne6 {[%emt 0:01:27]} Nxe6 {[%emt 0:00:33]} ({Inferior is} 23... Nxd3 24. Qg3 Rc7 25. Nxc7 Qxc7 26. Rxf6 $19) 24. dxe6 {[%emt 0:00:09]} Qxe6 {[%emt 0:00:07]} 25. Rfc1 {[%emt 0:01:03]} Rc5 {[%emt 0:00:26]} 26. Qc2 {[%emt 0:01:42]} Qb6 {[%emt 0:02:12]} 27. Qb3 {[%emt 0:01:24]} Bc8 {[%emt 0:02:02]} 28. Rc2 {[%emt 0:01:03]} Bd7 {[%emt 0:00:35] Black is clearly winning.} 29. Rb2 {[%emt 0:00:14]} Rb8 {[%emt 0:00:22]} 30. Rab1 {[%emt 0:00:30]} Qc6 {[%emt 0:00:46]} 31. Qd1 {[%emt 0:00:46]} Be6 {[%emt 0:00:16]} 32. Ra2 {[%emt 0:04:17]} h6 {[%emt 0:01:01] Threatens to win with ...Rd8.} 33. Qe1 {[%emt 0:02:59]} (33. Qb3 $142) 33... Kh7 {[%emt 0:01:07]} 34. h3 {[%emt 0:01:23]} Qc7 {[%emt 0:01:36]} 35. Qf1 {[%emt 0:00:58]} Qd7 {[%emt 0:01:57]} 36. Kh2 {[%emt 0:02:02]} a4 {[%emt 0:00:38] And now ...b3 would win.} 37. Rab2 {[%emt 0:00:58]} b3 {[%emt 0:00:07]} 38. Ra1 {[%emt 0:00:09]} Rb4 {[%emt 0:01:07][%cal Re6c4]} 39. Ra3 {[%emt 0:02:55]} Bxc4 {[%emt 0:00:50]} 40. Bxc4 {[%emt 0:00:12]} Rbxc4 {[%emt 0:00:06] White got outplayed after the opening.  Weighted Error Value: White=0.66/Black=0.25 (precise)} 0-1

[Event "FIDE WY-U16 Olympiad 2022"]
[Site "Nakhchivan"]
[Date "2022.10.02"]
[Round "1.11"]
[White "Rohit S"]
[Black "Schnell, Sebastian Narayana"]
[Result "1-0"]
[ECO "B10"]
[WhiteElo "2065"]
[BlackElo "1846"]
[Annotator "TA"]
[PlyCount "67"]
[EventDate "2022.10.02"]
[EventType "team-tourn"]
[EventCountry "AZE"]
[SourceTitle "playchess.com"]
[Source "ChessBase"]
[SourceQuality "1"]
[WhiteTeam "India"]
[BlackTeam "Panama"]
[WhiteTeamCountry "IND"]
[BlackTeamCountry "PAN"]
[TimeControl "40/5400+30:1800+30"]

{[%evp 9,67,10,53,61,56,44,65,35,36,36,40,29,37,35,44,8,58,45,86,93,154,145,149,149,180,173,179,180,232,240,320,328,317,315,478,498,465,472,578,569,888,861,1293,1191,1289,905,29984,29985,29989,1304,29990,1264,1291,945,1265,943,845,704,682,435]} 1. e4 {[%emt 0:00:03]} c6 {[%emt 0:00:12]} 2. Nc3 {[%emt 0:00:06][%cal Bb1c3,Bc3e2,Be2g3][%mdl 32]} d5 {[%emt 0:00:10]} 3. Nf3 {[%emt 0:00:08]} Nf6 {[%emt 0:02:05]} 4. e5 {[%emt 0:00:12]} Ne4 {[%emt 0:00:06]} 5. Ne2 {[%emt 0:00:10]} e6 {[%emt 0:04:11]} 6. d3 {[%emt 0:01:57][%cal Bd2d3,Bd3d4][%mdl 32] B11: Caro-Kann: Two Knights Variation.} Nc5 {[%emt 0:00:21]} 7. d4 {[%emt 0:05:39]} Ncd7 {[%emt 0:00:18]} 8. Ng3 {[%emt 0:04:08] White is slightly better.} c5 {[%emt 0:04:25]} 9. c3 {[%emt 0:01:10]} Nc6 {[%emt 0:00:45]} 10. a3 {[%emt 0:04:46]} c4 {[%emt 0:04:38] [#] Prevents Bd3.} 11. Be2 $146 {[%emt 0:13:12][%cal Bf1e2,Be2h5,Bh5d1][%mdl 32]} ({Predecessor:} 11. b3 b5 12. Be2 Na5 13. Nd2 cxb3 14. Nxb3 Nc4 15. O-O Bb7 16. f4 g6 17. f5 exf5 18. Nxf5 gxf5 {1-0 (40) Jumabayev,R (2614)-Saiyn,Z (2395) Almaty 2017}) 11... Be7 {[%emt 0:04:56]} 12. h4 {[%emt 0:01:19]} b5 {[%emt 0:02:32]} (12... f6 $11) 13. Ng5 {[%emt 0:01:57]} Nb6 {[%emt 0:05:36]} 14. Bh5 {[%emt 0:06:22] White is more active. White stays focused until the end.} g6 {[%emt 0:02:57]} ({Black should play} 14... Bxg5 15. hxg5 (15. Bxg5 Qc7 $14) 15... Na5) 15. Qf3 $16 {[%emt 0:01:57]} Bxg5 {[%emt 0:17:18]} 16. Bxg5 {[%emt 0:00:49]} Qc7 {[%emt 0:00:52]} 17. Qf6 {[%emt 0:04:46]} Rg8 {[%emt 0:02:04]} 18. Bd1 {[%emt 0:01:42]} Na4 {[%emt 0:12:43]} (18... Nd7 $142 19. Qf3 h5) 19. Rb1 $18 {[%emt 0:02:42]} Bb7 {[%emt 0:11:43]} 20. h5 {[%emt 0:01:24]} Qe7 {[%emt 0:03:24]} 21. Qf4 {[%emt 0:00:37]} Qc7 {[%emt 0:01:19]} (21... Qf8 $142 22. Kd2 a5 23. hxg6 hxg6 24. Bxa4 bxa4) 22. hxg6 {[%emt 0:06:34]} hxg6 {[%emt 0:00:10]} 23. Rh7 {[%emt 0:01:43]} Nd8 {[%emt 0:03:13]} 24. Bg4 {[%emt 0:03:01]} Rf8 {[%emt 0:02:06]} 25. Qf6 {[%emt 0:00:17] [#] Threatens to win with Qg7.} Rc8 {[%emt 0:04:22]} 26. Kd2 {[%emt 0:00:50]} Rg8 {[%emt 0:02:07]} 27. Rbh1 {[%emt 0:01:19]} Nxb2 {[%emt 0:02:33]} 28. Rh8 {[%emt 0:00:05]} Rxh8 {[%emt 0:00:31]} 29. Rxh8+ {[%emt 0:00:05]} Kd7 {[%emt 0:00:05] [#]} 30. Qe7+ {[%emt 0:01:57]} (30. Bxe6+ $142 $1 {[%mdl 512]} fxe6 31. Qe7+ Kc6 32. Qc5+ Kd7 33. Rh7+ Ke8 34. Re7+ Kf8 35. Rxc7+ Kg8 36. Rxc8 Bxc8 37. Bh6 Kh7 38. Qf8 Bd7 39. Qg7#) 30... Kc6 {[%emt 0:00:58] White is clearly winning.} 31. Qc5+ {[%emt 0:00:46]} Kd7 {[%emt 0:00:36]} 32. Qxb5+ {[%emt 0:00:17]} Bc6 {[%emt 0:00:08]} 33. Qxb2 {[%emt 0:00:11] aiming for Qb4.} Rb8 {[%emt 0:00:20]} 34. Qxb8 {[%emt 0:00:42] Weighted Error Value: White=0.10 (very precise) /Black=0.49} 1-0